[Event "*** SCC Grand Prix: Titled Tuesday Blitz"]
[Site "Chess.com"]
[Date "2020.07.21"]
[Round "9"]
[White "Fischerev7"]
[Black "Nayemhaque22"]
[Result "1-0"]
[WhiteElo "2352"]
[BlackElo "2195"]
[TimeControl "180+1"]
[EndTime "11:48:44 PDT"]
[Termination "Fischerev7 won by resignation"]

1. e4 {[%clk 0:03:00.9]} 1... c5 {[%clk 0:02:59.4]} 2. Nf3 {[%clk 0:03:00.5]}
2... Nc6 {[%clk 0:03:00.3]} 3. d4 {[%clk 0:03:00.1]} 3... cxd4 {[%clk
0:03:01.2]} 4. Nxd4 {[%clk 0:03:00.9]} 4... Nf6 {[%clk 0:03:01.2]} 5. Nc3 {[%clk
0:03:00.7]} 5... e5 {[%clk 0:03:00.9]} 6. Ndb5 {[%clk 0:03:00.2]} 6... d6 {[%clk
0:03:01]} 7. Bg5 {[%clk 0:02:58.8]} 7... a6 {[%clk 0:03:00.9]} 8. Na3 {[%clk
0:02:46.1]} 8... b5 {[%clk 0:03:00.3]} 9. Nd5 {[%clk 0:02:44.1]} 9... Be7 {[%clk
0:02:59.5]} 10. Bxf6 {[%clk 0:02:44.3]} 10... Bxf6 {[%clk 0:02:59.2]} 11. c4
{[%clk 0:02:44.6]} 11... b4 {[%clk 0:02:58.1]} 12. Nc2 {[%clk 0:02:44.7]} 12...
O-O {[%clk 0:02:56.9]} 13. g3 {[%clk 0:02:45]} 13... a5 {[%clk 0:02:54.6]} 14.
Bg2 {[%clk 0:02:45.3]} 14... Rb8 {[%clk 0:02:40.2]} 15. b3 {[%clk 0:02:44.8]}
15... Bg5 {[%clk 0:02:36.3]} 16. O-O {[%clk 0:02:44.6]} 16... Be6 {[%clk
0:02:19.5]} 17. h4 {[%clk 0:02:41.4]} 17... Bh6 {[%clk 0:02:11.1]} 18. Qd3
{[%clk 0:02:39.8]} 18... g6 {[%clk 0:02:05.6]} 19. a3 {[%clk 0:02:35.1]} 19...
Bg7 {[%clk 0:02:01.8]} 20. axb4 {[%clk 0:02:33.7]} 20... axb4 {[%clk 0:01:57.7]}
21. Ra6 {[%clk 0:02:24.6]} 21... Nd4 {[%clk 0:01:51.3]} 22. Rfa1 {[%clk
0:01:36]} 22... Bxd5 {[%clk 0:01:47.6]} 23. exd5 {[%clk 0:01:34.2]} 23... e4
{[%clk 0:01:40.2]} 24. Bxe4 {[%clk 0:00:40.6]} 24... Nxc2 {[%clk 0:01:38.5]} 25.
Qxc2 {[%clk 0:00:41.5]} 25... Bxa1 {[%clk 0:01:37.5]} 26. Rxa1 {[%clk
0:00:42.4]} 26... Ra8 {[%clk 0:01:33.2]} 27. Rxa8 {[%clk 0:00:38.3]} 27... Qxa8
{[%clk 0:01:32]} 28. c5 {[%clk 0:00:38.8]} 28... dxc5 {[%clk 0:01:26.6]} 29.
Qxc5 {[%clk 0:00:39.7]} 29... Qa1+ {[%clk 0:01:24.7]} 30. Kg2 {[%clk 0:00:37.7]}
30... Qc3 {[%clk 0:01:24.6]} 31. Qe7 {[%clk 0:00:32.4]} 31... Qxb3 {[%clk
0:01:14.4]} 32. h5 {[%clk 0:00:30.4]} 32... Qc3 {[%clk 0:01:04]} 33. d6 {[%clk
0:00:26.8]} 33... Qd4 {[%clk 0:01:02.8]} 34. d7 {[%clk 0:00:25.6]} 34... b3
{[%clk 0:01:01.7]} 35. h6 {[%clk 0:00:24.1]} 35... b2 {[%clk 0:01:00.3]} 36. Bb1
{[%clk 0:00:21.2]} 36... Qd5+ {[%clk 0:00:56.5]} 37. Be4 {[%clk 0:00:19.7]}
37... Qd4 {[%clk 0:00:56]} 38. Bc2 {[%clk 0:00:18.7]} 38... Ra8 {[%clk
0:00:55.2]} 39. Qe8+ {[%clk 0:00:16.5]} 1-0

[Event "*** SCC Grand Prix: Titled Tuesday Blitz"]
[Site "Chess.com"]
[Date "2020.07.21"]
[Round "9"]
[White "szachuspl"]
[Black "Shushik"]
[Result "1-0"]
[WhiteElo "2561"]
[BlackElo "2240"]
[TimeControl "180+1"]
[EndTime "11:48:45 PDT"]
[Termination "szachuspl won by checkmate"]

1. d4 {[%clk 0:03:00.9]} 1... d5 {[%clk 0:03:00]} 2. c4 {[%clk 0:03:00.4]} 2...
e6 {[%clk 0:03:00.3]} 3. Nc3 {[%clk 0:03:00.4]} 3... Be7 {[%clk 0:03:00.5]} 4.
Nf3 {[%clk 0:03:00.6]} 4... Nf6 {[%clk 0:03:00.8]} 5. Bf4 {[%clk 0:02:58.8]}
5... O-O {[%clk 0:03:00.6]} 6. e3 {[%clk 0:02:58.5]} 6... c5 {[%clk 0:02:56.9]}
7. dxc5 {[%clk 0:02:58.6]} 7... Bxc5 {[%clk 0:02:54.9]} 8. a3 {[%clk 0:02:57.7]}
8... dxc4 {[%clk 0:02:51.6]} 9. Bxc4 {[%clk 0:02:53.8]} 9... a6 {[%clk
0:02:45.7]} 10. O-O {[%clk 0:02:53]} 10... b5 {[%clk 0:02:44.5]} 11. Be2 {[%clk
0:02:52.5]} 11... Bb7 {[%clk 0:02:43.4]} 12. b4 {[%clk 0:02:52]} 12... Bb6
{[%clk 0:02:42.7]} 13. Qb3 {[%clk 0:02:49]} 13... Nd5 {[%clk 0:02:34.6]} 14. Bg3
{[%clk 0:02:42.6]} 14... Qe7 {[%clk 0:02:30.2]} 15. Rac1 {[%clk 0:02:36.7]}
15... Nxc3 {[%clk 0:02:26.2]} 16. Qxc3 {[%clk 0:02:36.2]} 16... Nd7 {[%clk
0:02:24.8]} 17. Rfd1 {[%clk 0:02:34.6]} 17... Rac8 {[%clk 0:02:23.6]} 18. Qd2
{[%clk 0:02:33.8]} 18... Rxc1 {[%clk 0:02:16.4]} 19. Qxc1 {[%clk 0:02:29.3]}
19... Rc8 {[%clk 0:02:15.3]} 20. Qd2 {[%clk 0:02:29.2]} 20... Nf6 {[%clk
0:02:14.8]} 21. Be5 {[%clk 0:02:23.1]} 21... Nd5 {[%clk 0:02:07.1]} 22. h3
{[%clk 0:02:18.8]} 22... f6 {[%clk 0:02:01]} 23. Bd4 {[%clk 0:02:18.7]} 23...
Bxd4 {[%clk 0:01:57.5]} 24. Nxd4 {[%clk 0:02:16.4]} 24... Nc3 {[%clk 0:01:53.7]}
25. Rc1 {[%clk 0:02:16.4]} 25... Nxe2+ {[%clk 0:01:53.1]} 26. Nxe2 {[%clk
0:02:16.3]} 26... Rxc1+ {[%clk 0:01:51]} 27. Qxc1 {[%clk 0:02:15.1]} 27... Qd6
{[%clk 0:01:44.4]} 28. Nd4 {[%clk 0:02:06.7]} 28... Qd5 {[%clk 0:01:41.4]} 29.
f3 {[%clk 0:02:06]} 29... Qd6 {[%clk 0:01:29.8]} 30. Kf2 {[%clk 0:02:02.4]}
30... Kf7 {[%clk 0:01:28.9]} 31. Qc3 {[%clk 0:01:59.9]} 31... g6 {[%clk
0:01:20.7]} 32. Nb3 {[%clk 0:01:57.7]} 32... Bd5 {[%clk 0:01:19.5]} 33. Nd2
{[%clk 0:01:51.1]} 33... Qc6 {[%clk 0:01:15.8]} 34. Qd4 {[%clk 0:01:43.6]} 34...
Qc2 {[%clk 0:01:07.2]} 35. Kg3 {[%clk 0:01:39.1]} 35... Qc7+ {[%clk 0:01:04.5]}
36. Kf2 {[%clk 0:01:37.5]} 36... Qc2 {[%clk 0:01:03.8]} 37. e4 {[%clk
0:01:35.9]} 37... Bb7 {[%clk 0:00:53.2]} 38. Ke2 {[%clk 0:01:33.2]} 38... Qc7
{[%clk 0:00:50.9]} 39. Ke3 {[%clk 0:01:23]} 39... g5 {[%clk 0:00:49.3]} 40. Nb3
{[%clk 0:01:13.7]} 40... Kg6 {[%clk 0:00:35.9]} 41. Nc5 {[%clk 0:01:13]} 41...
Qf4+ {[%clk 0:00:35.7]} 42. Kf2 {[%clk 0:01:08.1]} 42... Bc8 {[%clk 0:00:30.4]}
43. Qd8 {[%clk 0:00:59.3]} 43... Qb8 {[%clk 0:00:22.3]} 44. Qg8+ {[%clk
0:00:48.6]} 44... Kh6 {[%clk 0:00:22.2]} 45. Qf8+ {[%clk 0:00:46.3]} 45... Kg6
{[%clk 0:00:21.6]} 46. Kg1 {[%clk 0:00:44.2]} 46... e5 {[%clk 0:00:14.5]} 47.
Kh2 {[%clk 0:00:40.2]} 47... f5 {[%clk 0:00:13.5]} 48. exf5+ {[%clk 0:00:36.7]}
48... Kh5 {[%clk 0:00:10.7]} 49. g4+ {[%clk 0:00:34.9]} 49... Kh4 {[%clk
0:00:10.6]} 50. Qh6# {[%clk 0:00:34.7]} 1-0

[Event "*** SCC Grand Prix: Titled Tuesday Blitz"]
[Site "Chess.com"]
[Date "2020.07.21"]
[Round "9"]
[White "novocane"]
[Black "elohunter1999"]
[Result "1/2-1/2"]
[WhiteElo "2271"]
[BlackElo "2450"]
[TimeControl "180+1"]
[EndTime "11:48:49 PDT"]
[Termination "Game drawn by repetition"]

1. d4 {[%clk 0:03:00.8]} 1... Nf6 {[%clk 0:02:59.8]} 2. c4 {[%clk 0:03:00.8]}
2... g6 {[%clk 0:02:59.7]} 3. Nc3 {[%clk 0:03:00.7]} 3... d5 {[%clk 0:02:59.9]}
4. cxd5 {[%clk 0:03:01.6]} 4... Nxd5 {[%clk 0:03:00.8]} 5. e4 {[%clk 0:03:01.8]}
5... Nxc3 {[%clk 0:03:01]} 6. bxc3 {[%clk 0:03:02.7]} 6... Bg7 {[%clk
0:03:01.9]} 7. Qa4+ {[%clk 0:03:02.5]} 7... Nd7 {[%clk 0:03:00.5]} 8. Nf3 {[%clk
0:03:01]} 8... O-O {[%clk 0:03:00.4]} 9. Be3 {[%clk 0:02:46.5]} 9... c5 {[%clk
0:02:59.2]} 10. Rd1 {[%clk 0:02:42.2]} 10... Nb6 {[%clk 0:02:50.6]} 11. Qa3
{[%clk 0:02:27.5]} 11... cxd4 {[%clk 0:02:48.9]} 12. cxd4 {[%clk 0:02:23.3]}
12... Bg4 {[%clk 0:02:48.3]} 13. Be2 {[%clk 0:02:22.5]} 13... Bxf3 {[%clk
0:02:33.6]} 14. gxf3 {[%clk 0:02:22]} 14... Qd7 {[%clk 0:02:25.2]} 15. O-O
{[%clk 0:02:17.2]} 15... Rfc8 {[%clk 0:02:19.2]} 16. Kh1 {[%clk 0:02:05.3]}
16... Nc4 {[%clk 0:02:16]} 17. Qb3 {[%clk 0:02:03.6]} 17... b5 {[%clk
0:02:12.4]} 18. Rg1 {[%clk 0:01:56.8]} 18... a5 {[%clk 0:01:57.9]} 19. Rg5
{[%clk 0:01:53.3]} 19... Nxe3 {[%clk 0:01:48]} 20. Bxb5 {[%clk 0:01:31.5]} 20...
Qh3 {[%clk 0:01:46.8]} 21. Rg3 {[%clk 0:01:09.8]} 21... Qxg3 {[%clk 0:01:01.2]}
22. hxg3 {[%clk 0:01:01.4]} 22... Nxd1 {[%clk 0:01:01.1]} 23. Qxd1 {[%clk
0:01:01.3]} 23... Rc3 {[%clk 0:00:52.4]} 24. a4 {[%clk 0:00:56.8]} 24... Rac8
{[%clk 0:00:45.8]} 25. Kg2 {[%clk 0:00:56.8]} 25... h5 {[%clk 0:00:41.9]} 26.
Qd2 {[%clk 0:00:50.5]} 26... Rc2 {[%clk 0:00:37]} 27. Qd1 {[%clk 0:00:37]} 27...
Rb2 {[%clk 0:00:28.6]} 28. e5 {[%clk 0:00:33.9]} 28... Rcc2 {[%clk 0:00:25.7]}
29. Qe1 {[%clk 0:00:32.8]} 29... Rd2 {[%clk 0:00:25.5]} 30. Qe3 {[%clk
0:00:27.6]} 30... f6 {[%clk 0:00:22.6]} 31. f4 {[%clk 0:00:27.5]} 31... f5
{[%clk 0:00:18.5]} 32. d5 {[%clk 0:00:27]} 32... Kh7 {[%clk 0:00:16.6]} 33. Qc5
{[%clk 0:00:13.2]} 33... Rdc2 {[%clk 0:00:16.7]} 34. Qe3 {[%clk 0:00:11.6]}
34... Rd2 {[%clk 0:00:13.8]} 35. Bc6 {[%clk 0:00:06.4]} 35... Rdc2 {[%clk
0:00:12.4]} 36. Bb5 {[%clk 0:00:04.4]} 36... Rd2 {[%clk 0:00:05.3]} 1/2-1/2

[Event "*** SCC Grand Prix: Titled Tuesday Blitz"]
[Site "Chess.com"]
[Date "2020.07.21"]
[Round "9"]
[White "Azoulas1"]
[Black "Sn00pPawn"]
[Result "0-1"]
[WhiteElo "1984"]
[BlackElo "1802"]
[TimeControl "180+1"]
[EndTime "11:48:49 PDT"]
[Termination "Sn00pPawn won by checkmate"]

1. c4 {[%clk 0:03:00.9]} 1... e5 {[%clk 0:02:58.3]} 2. Nc3 {[%clk 0:03:00.4]}
2... Nf6 {[%clk 0:02:57.6]} 3. g3 {[%clk 0:02:59.7]} 3... Nc6 {[%clk 0:02:54.5]}
4. Bg2 {[%clk 0:02:58.1]} 4... Bb4 {[%clk 0:02:53.6]} 5. e3 {[%clk 0:02:55.8]}
5... Bxc3 {[%clk 0:02:49.4]} 6. bxc3 {[%clk 0:02:51.2]} 6... e4 {[%clk
0:02:18.5]} 7. Ne2 {[%clk 0:02:46.8]} 7... Ne5 {[%clk 0:02:04.5]} 8. O-O {[%clk
0:02:45.2]} 8... Nxc4 {[%clk 0:01:52.5]} 9. d3 {[%clk 0:02:37.3]} 9... exd3
{[%clk 0:01:50]} 10. Qxd3 {[%clk 0:02:36.2]} 10... Ne5 {[%clk 0:01:49.3]} 11.
Qf5 {[%clk 0:02:34.6]} 11... d6 {[%clk 0:01:44.9]} 12. Qc2 {[%clk 0:02:32.4]}
12... O-O {[%clk 0:01:43.5]} 13. Rb1 {[%clk 0:02:31]} 13... d5 {[%clk
0:01:13.6]} 14. Ba3 {[%clk 0:02:28.6]} 14... Re8 {[%clk 0:01:12.7]} 15. Rfd1
{[%clk 0:02:27.1]} 15... c6 {[%clk 0:01:09.1]} 16. Nf4 {[%clk 0:02:24.6]} 16...
Nc4 {[%clk 0:01:05]} 17. Bc5 {[%clk 0:02:19.5]} 17... Nd7 {[%clk 0:00:49]} 18.
Bd4 {[%clk 0:02:02.9]} 18... Na3 {[%clk 0:00:43.9]} 19. Qf5 {[%clk 0:01:27.5]}
19... Ne5 {[%clk 0:00:32.2]} 20. Qh5 {[%clk 0:01:16.6]} 20... Bg4 {[%clk
0:00:28.5]} 21. Qh4 {[%clk 0:01:07]} 21... g5 {[%clk 0:00:18]} 22. Qh6 {[%clk
0:01:02.8]} 22... gxf4 {[%clk 0:00:18.3]} 23. exf4 {[%clk 0:01:00.2]} 23... Re6
{[%clk 0:00:16]} 24. Qh4 {[%clk 0:00:46]} 24... Qxh4 {[%clk 0:00:15.5]} 25. gxh4
{[%clk 0:00:45.4]} 25... Nf3+ {[%clk 0:00:15.8]} 26. Kh1 {[%clk 0:00:30.3]}
26... Nxb1 {[%clk 0:00:14.3]} 27. Rxb1 {[%clk 0:00:29.3]} 27... Nxd4 {[%clk
0:00:14.5]} 28. cxd4 {[%clk 0:00:28.1]} 28... Re7 {[%clk 0:00:14.1]} 29. h3
{[%clk 0:00:27.8]} 29... Bf5 {[%clk 0:00:13.6]} 30. Kh2 {[%clk 0:00:28]} 30...
Bxb1 {[%clk 0:00:12]} 31. Bf3 {[%clk 0:00:28.1]} 31... Bxa2 {[%clk 0:00:12.1]}
32. h5 {[%clk 0:00:27.8]} 32... Bc4 {[%clk 0:00:12.5]} 33. h4 {[%clk 0:00:27.5]}
33... a5 {[%clk 0:00:13.4]} 34. Bd1 {[%clk 0:00:24.9]} 34... a4 {[%clk 0:00:14]}
35. Bc2 {[%clk 0:00:22.1]} 35... a3 {[%clk 0:00:14.3]} 36. Bb1 {[%clk
0:00:21.5]} 36... a2 {[%clk 0:00:15.2]} 37. Bxa2 {[%clk 0:00:22.1]} 37... Rxa2
{[%clk 0:00:11]} 38. Kg3 {[%clk 0:00:22]} 38... Ree2 {[%clk 0:00:11.7]} 39. Kg4
{[%clk 0:00:19.1]} 39... Rxf2 {[%clk 0:00:12.6]} 40. Kf5 {[%clk 0:00:19.1]}
40... Rae2 {[%clk 0:00:12.5]} 41. Kg5 {[%clk 0:00:15.9]} 41... Rg2+ {[%clk
0:00:10.4]} 42. Kf6 {[%clk 0:00:15.7]} 42... Re6+ {[%clk 0:00:07.4]} 43. Kf5
{[%clk 0:00:11.5]} 43... Bd3# {[%clk 0:00:08.3]} 0-1

[Event "*** SCC Grand Prix: Titled Tuesday Blitz"]
[Site "Chess.com"]
[Date "2020.07.21"]
[Round "9"]
[White "FabianoCaruana"]
[Black "GigaQuparadze"]
[Result "0-1"]
[WhiteElo "3034"]
[BlackElo "2885"]
[TimeControl "180+1"]
[EndTime "11:48:52 PDT"]
[Termination "GigaQuparadze won by resignation"]

1. e4 {[%clk 0:03:00.9]} 1... c5 {[%clk 0:02:59.6]} 2. Nf3 {[%clk 0:03:01.2]}
2... e6 {[%clk 0:02:56.7]} 3. d4 {[%clk 0:03:01.2]} 3... cxd4 {[%clk 0:02:57.6]}
4. Nxd4 {[%clk 0:03:02]} 4... a6 {[%clk 0:02:58]} 5. Bd3 {[%clk 0:03:00.7]} 5...
Nc6 {[%clk 0:02:57.8]} 6. Nxc6 {[%clk 0:02:59.6]} 6... dxc6 {[%clk 0:02:58.7]}
7. O-O {[%clk 0:02:57.9]} 7... e5 {[%clk 0:02:58.5]} 8. a4 {[%clk 0:02:58.2]}
8... Nf6 {[%clk 0:02:58.2]} 9. a5 {[%clk 0:02:57.6]} 9... Be6 {[%clk 0:02:57.4]}
10. Qe2 {[%clk 0:02:53.5]} 10... Bc5 {[%clk 0:02:56.3]} 11. Be3 {[%clk
0:02:53.1]} 11... Bxe3 {[%clk 0:02:55.6]} 12. Qxe3 {[%clk 0:02:54]} 12... O-O
{[%clk 0:02:55.1]} 13. Nd2 {[%clk 0:02:51.5]} 13... Qc7 {[%clk 0:02:54.6]} 14.
h3 {[%clk 0:02:50.5]} 14... Rad8 {[%clk 0:02:54]} 15. Nf3 {[%clk 0:02:50.6]}
15... h6 {[%clk 0:02:52.4]} 16. Rfd1 {[%clk 0:02:50.2]} 16... Nd7 {[%clk
0:02:48.3]} 17. Bf1 {[%clk 0:02:45.7]} 17... Rfe8 {[%clk 0:02:47.5]} 18. Rd2
{[%clk 0:02:44.4]} 18... Nf8 {[%clk 0:02:46.4]} 19. b4 {[%clk 0:02:39.4]} 19...
Rxd2 {[%clk 0:02:45]} 20. Qxd2 {[%clk 0:02:40.3]} 20... Rd8 {[%clk 0:02:43.9]}
21. Qe3 {[%clk 0:02:40.1]} 21... Ng6 {[%clk 0:02:34.6]} 22. g3 {[%clk
0:02:39.8]} 22... Qc8 {[%clk 0:02:31.8]} 23. Kh2 {[%clk 0:02:39.2]} 23... Rd7
{[%clk 0:02:27.9]} 24. Ne1 {[%clk 0:02:31.7]} 24... Rd8 {[%clk 0:02:15.8]} 25.
h4 {[%clk 0:02:24.4]} 25... Qc7 {[%clk 0:02:09.3]} 26. Be2 {[%clk 0:02:22.5]}
26... Nf8 {[%clk 0:02:09]} 27. Ra3 {[%clk 0:02:12.9]} 27... Nd7 {[%clk
0:02:07.7]} 28. c3 {[%clk 0:02:02.8]} 28... Nf6 {[%clk 0:02:07.1]} 29. f3 {[%clk
0:02:01.7]} 29... Qd6 {[%clk 0:02:02.5]} 30. Bd3 {[%clk 0:01:55]} 30... Rc8
{[%clk 0:01:56.2]} 31. Ra1 {[%clk 0:01:51.7]} 31... c5 {[%clk 0:01:56.2]} 32. b5
{[%clk 0:01:42.7]} 32... c4 {[%clk 0:01:53.9]} 33. bxa6 {[%clk 0:01:38.6]} 33...
Qxa6 {[%clk 0:01:53]} 34. Be2 {[%clk 0:01:37]} 34... Qb5 {[%clk 0:01:48.1]} 35.
Kg2 {[%clk 0:01:11.8]} 35... Ra8 {[%clk 0:01:46.9]} 36. Qd2 {[%clk 0:01:09.2]}
36... Nd7 {[%clk 0:01:44.6]} 37. Qa2 {[%clk 0:01:01.4]} 37... Nc5 {[%clk
0:01:44.5]} 38. Qa3 {[%clk 0:00:55.2]} 38... b6 {[%clk 0:01:33.3]} 39. Qb4
{[%clk 0:00:32.2]} 39... Rxa5 {[%clk 0:01:32.2]} 40. Qxb5 {[%clk 0:00:25.9]}
40... Rxb5 {[%clk 0:01:33.1]} 41. Kf2 {[%clk 0:00:25.2]} 41... Rb3 {[%clk
0:01:30.1]} 42. Rc1 {[%clk 0:00:25.3]} 42... Na4 {[%clk 0:01:27.3]} 43. f4
{[%clk 0:00:17]} 43... Nxc3 {[%clk 0:01:23.2]} 44. Bf3 {[%clk 0:00:17.5]} 44...
f6 {[%clk 0:01:17.9]} 45. Nc2 {[%clk 0:00:17.1]} 45... b5 {[%clk 0:01:17.1]} 46.
Ne3 {[%clk 0:00:15]} 46... b4 {[%clk 0:01:15.6]} 47. Rc2 {[%clk 0:00:11.3]}
47... Rb1 {[%clk 0:01:09.7]} 48. Rd2 {[%clk 0:00:11.1]} 48... b3 {[%clk
0:01:06.3]} 49. Rd8+ {[%clk 0:00:10.7]} 49... Kh7 {[%clk 0:01:05.7]} 50. Bh5
{[%clk 0:00:07.4]} 50... exf4 {[%clk 0:00:55.3]} 51. gxf4 {[%clk 0:00:07.4]}
51... Nxe4+ {[%clk 0:00:55.3]} 52. Kf3 {[%clk 0:00:07.9]} 52... f5 {[%clk
0:00:55.7]} 53. Re8 {[%clk 0:00:06.6]} 53... Nf6 {[%clk 0:00:42.2]} 54. Rxe6
{[%clk 0:00:06.2]} 54... Nxh5 {[%clk 0:00:42.4]} 55. Nxc4 {[%clk 0:00:06.9]}
55... Rf1+ {[%clk 0:00:41.6]} 0-1

[Event "*** SCC Grand Prix: Titled Tuesday Blitz"]
[Site "Chess.com"]
[Date "2020.07.21"]
[Round "9"]
[White "DishonorOnYourCow"]
[Black "chalowey97"]
[Result "1-0"]
[WhiteElo "2320"]
[BlackElo "2141"]
[TimeControl "180+1"]
[EndTime "11:48:52 PDT"]
[Termination "DishonorOnYourCow won on time"]

1. d4 {[%clk 0:03:00.9]} 1... d5 {[%clk 0:02:59.5]} 2. c4 {[%clk 0:03:00]} 2...
dxc4 {[%clk 0:02:59.2]} 3. Nf3 {[%clk 0:02:58.6]} 3... Nf6 {[%clk 0:02:58.4]} 4.
e3 {[%clk 0:02:58.3]} 4... Bg4 {[%clk 0:02:58.1]} 5. Bxc4 {[%clk 0:02:57.6]}
5... e6 {[%clk 0:02:58.7]} 6. O-O {[%clk 0:02:54.3]} 6... a6 {[%clk 0:02:59.2]}
7. Nbd2 {[%clk 0:02:54.1]} 7... Nbd7 {[%clk 0:02:59.6]} 8. h3 {[%clk 0:02:54.1]}
8... Bh5 {[%clk 0:02:59.5]} 9. b3 {[%clk 0:02:52.9]} 9... b5 {[%clk 0:02:59.4]}
10. Be2 {[%clk 0:02:53.1]} 10... c5 {[%clk 0:02:59.7]} 11. Bb2 {[%clk
0:02:51.6]} 11... Be7 {[%clk 0:02:57.4]} 12. a4 {[%clk 0:02:46]} 12... b4 {[%clk
0:02:52.6]} 13. Nc4 {[%clk 0:02:41]} 13... O-O {[%clk 0:02:47.7]} 14. Nfe5
{[%clk 0:02:36.7]} 14... Bg6 {[%clk 0:02:37.1]} 15. Nc6 {[%clk 0:02:33.5]} 15...
Qe8 {[%clk 0:02:37]} 16. Nxe7+ {[%clk 0:02:33.3]} 16... Qxe7 {[%clk 0:02:37.9]}
17. Bf3 {[%clk 0:02:32.3]} 17... Rad8 {[%clk 0:02:14.5]} 18. Qe2 {[%clk
0:02:29.5]} 18... Rfe8 {[%clk 0:02:12.8]} 19. Na5 {[%clk 0:02:12.7]} 19... Nb8
{[%clk 0:01:45.8]} 20. Nb7 {[%clk 0:02:01.6]} 20... cxd4 {[%clk 0:01:38]} 21.
Nxd8 {[%clk 0:01:59.8]} 21... d3 {[%clk 0:01:38.1]} 22. Qd2 {[%clk 0:01:57]}
22... Rxd8 {[%clk 0:01:37]} 23. Bxf6 {[%clk 0:01:53.9]} 23... Qxf6 {[%clk
0:01:32.4]} 24. Qxb4 {[%clk 0:01:52.7]} 24... e5 {[%clk 0:01:26.1]} 25. Rad1
{[%clk 0:01:38.5]} 25... Qe6 {[%clk 0:01:05.2]} 26. Be4 {[%clk 0:01:32]} 26...
Bxe4 {[%clk 0:00:56.4]} 27. Qxe4 {[%clk 0:01:32.9]} 27... f5 {[%clk 0:00:56.5]}
28. Qh4 {[%clk 0:01:25.3]} 28... Rd7 {[%clk 0:00:51.9]} 29. Qb4 {[%clk
0:01:22.2]} 29... Nc6 {[%clk 0:00:48.2]} 30. Qb6 {[%clk 0:01:14.7]} 30... a5
{[%clk 0:00:43]} 31. Rc1 {[%clk 0:01:09.9]} 31... Rd6 {[%clk 0:00:36.1]} 32. e4
{[%clk 0:00:36.4]} 32... fxe4 {[%clk 0:00:18.5]} 33. Qe3 {[%clk 0:00:36.3]}
33... Rd4 {[%clk 0:00:13.8]} 34. Rc5 {[%clk 0:00:29.1]} 34... Nb4 {[%clk
0:00:11.3]} 35. Rxa5 {[%clk 0:00:26.7]} 35... Nc2 {[%clk 0:00:10.8]} 36. Ra8+
{[%clk 0:00:25.4]} 36... Kf7 {[%clk 0:00:10.8]} 37. Qg5 {[%clk 0:00:24.4]} 37...
Qe7 {[%clk 0:00:04.9]} 38. Qh5+ {[%clk 0:00:20.8]} 38... Kf6 {[%clk 0:00:02.9]}
39. Ra6+ {[%clk 0:00:18.9]} 39... Rd6 {[%clk 0:00:02.5]} 40. Qh4+ {[%clk
0:00:19]} 40... Ke6 {[%clk 0:00:01.8]} 41. Rxd6+ {[%clk 0:00:15.7]} 41... Kxd6
{[%clk 0:00:01.4]} 42. Qxe4 {[%clk 0:00:15.8]} 42... Ke6 {[%clk 0:00:01.3]} 43.
Qxd3 {[%clk 0:00:15.8]} 43... Nb4 {[%clk 0:00:01.7]} 44. Qc4+ {[%clk 0:00:15.8]}
44... Nd5 {[%clk 0:00:02.6]} 45. Rd1 {[%clk 0:00:15.9]} 45... Qd6 {[%clk
0:00:03.5]} 46. a5 {[%clk 0:00:15.3]} 1-0

[Event "*** SCC Grand Prix: Titled Tuesday Blitz"]
[Site "Chess.com"]
[Date "2020.07.21"]
[Round "9"]
[White "bmt011"]
[Black "Fortitudine"]
[Result "0-1"]
[WhiteElo "2119"]
[BlackElo "2270"]
[TimeControl "180+1"]
[EndTime "11:48:52 PDT"]
[Termination "Fortitudine won on time"]

1. d4 {[%clk 0:03:00]} 1... Nf6 {[%clk 0:02:59.7]} 2. Bf4 {[%clk 0:03:00.1]}
2... g6 {[%clk 0:02:55.8]} 3. e3 {[%clk 0:02:59.9]} 3... Bg7 {[%clk 0:02:55.7]}
4. h3 {[%clk 0:03:00.2]} 4... d6 {[%clk 0:02:56]} 5. Nf3 {[%clk 0:03:00.7]} 5...
O-O {[%clk 0:02:56.2]} 6. Be2 {[%clk 0:03:01.2]} 6... Nfd7 {[%clk 0:02:52]} 7.
Bh2 {[%clk 0:02:59.7]} 7... Nc6 {[%clk 0:02:51.8]} 8. O-O {[%clk 0:02:57.4]}
8... e5 {[%clk 0:02:50.9]} 9. c4 {[%clk 0:02:57.9]} 9... exd4 {[%clk 0:02:48.6]}
10. exd4 {[%clk 0:02:56.5]} 10... Re8 {[%clk 0:02:40.4]} 11. Nc3 {[%clk
0:02:56.4]} 11... a6 {[%clk 0:02:38.5]} 12. Qd2 {[%clk 0:02:31.2]} 12... Nf6
{[%clk 0:02:36.7]} 13. Bd3 {[%clk 0:02:21.7]} 13... Ne7 {[%clk 0:02:30.9]} 14.
Rad1 {[%clk 0:01:30.8]} 14... Bf5 {[%clk 0:02:28.4]} 15. c5 {[%clk 0:01:20.6]}
15... Bxd3 {[%clk 0:02:03.5]} 16. Qxd3 {[%clk 0:01:19.6]} 16... dxc5 {[%clk
0:01:49.5]} 17. dxc5 {[%clk 0:01:19.1]} 17... Qxd3 {[%clk 0:01:50.4]} 18. Rxd3
{[%clk 0:01:19.8]} 18... c6 {[%clk 0:01:49.4]} 19. Rfd1 {[%clk 0:01:11.4]} 19...
Ned5 {[%clk 0:01:46.5]} 20. Ne5 {[%clk 0:00:57.5]} 20... Bf8 {[%clk 0:01:20.4]}
21. Na4 {[%clk 0:00:45.4]} 21... Re6 {[%clk 0:01:05.7]} 22. Nc4 {[%clk
0:00:38.5]} 22... Re2 {[%clk 0:00:56.7]} 23. Be5 {[%clk 0:00:36.5]} 23... Re8
{[%clk 0:00:51.2]} 24. f4 {[%clk 0:00:34.3]} 24... Nd7 {[%clk 0:00:44.7]} 25.
Kf1 {[%clk 0:00:26.5]} 25... Nxe5 {[%clk 0:00:37.2]} 26. Nxe5 {[%clk 0:00:25.8]}
26... Re4 {[%clk 0:00:35]} 27. Nb6 {[%clk 0:00:10.3]} 27... Ne3+ {[%clk
0:00:27.8]} 28. Ke2 {[%clk 0:00:07.1]} 28... Nxd1+ {[%clk 0:00:27.6]} 29. Kxd1
{[%clk 0:00:07.7]} 29... Rxf4 {[%clk 0:00:15.8]} 30. Nbd7 {[%clk 0:00:07.6]}
30... Rf5 {[%clk 0:00:11.5]} 31. g3 {[%clk 0:00:07.9]} 31... h6 {[%clk
0:00:11.2]} 32. g4 {[%clk 0:00:07.7]} 32... Rf4 {[%clk 0:00:10.9]} 33. Rd6
{[%clk 0:00:01.4]} 33... Bxd6 {[%clk 0:00:10.4]} 0-1